Cogmind - Beta 13 @@@ ROGUE MODE // 2024.06.03 @ 21:05:13 Player: paplal Result: Destroyed by G-34 Mercenary with Small Laser Performance ------------- Evolutions (0) 0 Regions Visited (1) 200 Robots Destroyed (20) 100 Value Destroyed (322) 322 Prototype IDs (0) 0 Alien Tech Used (0) 0 Bonus (0) 0 TOTAL SCORE: 622 Bonus ------- None Cogmind --------- Core Integrity 0/250 Matter 295/300 Energy 98/100 System Corruption 0% Temperature Cool (27) Movement Flying (200) Ox2 Location -10/Materials Parts ------- > --- POWER (1) -------- (None) > --- PROPULSION (2) --- Flight Unit > --- UTILITY (2) ------ Medium Storage Unit > --- WEAPON (2) ------- Backup Laser I Light Assault Rifle > --- INVENTORY (10) --- Ion Engine Light Ion Engine Flight Unit Heat Sink Small Storage Unit Signal Interpreter EM Pulse Gun Peak State ------------ > --- POWER ------------ Ion Engine > --- PROPULSION ------- Aluminum Leg Aluminum Leg > --- UTILITY ---------- Heat Sink Small Storage Unit > --- WEAPON ----------- Small Laser Light Assault Rifle > --- INVENTORY -------- Ion Engine [Rating: 7] Favorites ----------- Power Ion Engine Engine Ion Engine Propulsion Flight Unit Leg Aluminum Leg Hover Unit Hover Unit Flight Unit Flight Unit Utility Heat Sink Device Heat Sink Storage Small Storage Unit Weapon Light Assault Rifle Energy Gun Small Laser Ballistic Gun Light Assault Rifle Build | -11 -10 ------- Run | Yrd Mat Slots Evolved . | . . Power . | . . Propulsion . | . . Utility . | . . Weapon . | . . Parts Attached 11 | 4 7 Power 1 | . 1 Engine 1 | . 1 Core . | . . Reactor . | . . Propulsion 5 | 2 3 Treads . | . . Leg 2 | 2 . Wheel . | . . Hover 1 | . 1 Flight 2 | . 2 Utility 3 | . 3 Device 1 | . 1 Storage 2 | . 2 Processor . | . . Hackware . | . . Protection . | . . Artifact . | . . Weapon 2 | 2 . Energy Gun 1 | 1 . Energy Cannon . | . . Ballistic Gun 1 | 1 . Ballistic Cannon . | . . Launcher . | . . Special Weapon . | . . Impact Weapon . | . . Slashing Weapon . | . . Piercing Weapon . | . . Special Melee Weapon . | . . Unidentified Prototypes . | . . Parts Lost 2 | . 2 Power 1 | . 1 Propulsion 1 | . 1 Utility . | . . Weapon . | . . Highest Loss Streak 1 | . 1 To Critical Strikes . | . . Average Slot Usage (%) 82 | . 82 Engine 13 | . 13 Leg 8 | . 8 Flight 12 | . 12 Device 9 | . 9 Storage 13 | . 13 Energy Gun 10 | . 10 Ballistic Gun 14 | . 14 Naked Turns . | . . Heaviest Build 17 | 2 17 Greatest Support 20 | 20 20 Greatest Overweight (x) 4 | . 4 Average Overweight (x) 1 | . 1 Largest Inventory Capacity 10 | 5 10 Average Capacity 8 | 5 8 Most Carried 7 | 5 7 Average Carried 4 | 3 4 Final Capacity 10 | 5 10 Final Carried 7 | 3 7 Class Distribution -------------------- 100% | Mutant Dominant Class ---------------- Mutant | -10/Materials Resources | -11 -10 ----------- Run | Yrd Mat Matter Collected 372 | 212 160 Remotely . | . . Salvage Created 504 | . 504 Parts 38 | . 38 Haulers Intercepted . | . . Recyclers Shooed 2 | . 2 Parts Field Recycled . | . . Retrieved Matter . | . . Parts Self-Destructed . | . . Prevented . | . . Kills | -11 -10 ------- Run | Yrd Mat Combat Hostiles Destroyed 11 | . 11 Guns 11 | . 11 Classes Destroyed 6 | . 6 Worker 5 | . 5 Builder 1 | . 1 Mechanic 1 | . 1 Watcher 2 | . 2 Swarmer 5 | . 5 Grunt 6 | . 6 Best Kill Streak 3 | . 3 Combat Bots Only 3 | . 3 Max Kills in Single Turn 1 | . 1 Gunslinging . | . . Exploded . | . . Melee . | . . Uniques/NPCs Destroyed . | . . Combat | -11 -10 -------- Run | Yrd Mat Hostile Shots Fired 107 | . 107 Missed 30 | . 30 Damage Taken 755 | . 755 Core 253 | . 253 Absorbed by Shields . | . . Regen/Repaired (Parts) 25 | . 25 Core Remaining (%) 100 | 100 . Volleys Fired 77 | . 77 Largest 2 | . 2 Hottest 60 | . 60 Shots Fired 145 | . 145 Gun 145 | . 145 Cannon . | . . Launcher . | . . Special . | . . Kinetic 77 | . 77 Thermal 68 | . 68 Explosive . | . . Electromagnetic . | . . Robot Hit Streak 10 | . 10 Robot Miss Streak 4 | . 4 Penetration Max . | . . Secondary Targets 4 | . 4 Max Gunslinging Chain 1 | . 1 Shots Hit Robots 83 | . 83 Core Hits 39 | . 39 Critical Kills . | . . Critical Parts Destroyed 1 | . 1 Critical Strikes 1 | . 1 Destroy 1 | . 1 Melee Attacks . | . . Impact . | . . Slashing . | . . Piercing . | . . Sneak Attacks . | . . Combat Hostiles . | . . Follow-up Attacks . | . . Damage Inflicted 788 | . 788 Guns 788 | . 788 Cannons . | . . Explosions . | . . Melee . | . . Ramming . | . . Kinetic 362 | . 362 Thermal 426 | . 426 Explosive . | . . Electromagnetic . | . . Impact . | . . Slashing . | . . Piercing . | . . Highest Corruption . | . . Average Corruption . | . . Corruption Purged . | . . Corruption Blocked . | . . Overload Shots . | . . Overflow Damage . | . . Projectiles . | . . Explosions . | . . Melee . | . . Knockbacks . | . . Impact . | . . Kinetic . | . . Secondary . | . . Self-Inflicted Damage . | . . Shots . | . . Rammed . | . . Targets Rammed . | . . Kicked . | . . Crushed . | . . Highest Temperature 50 | . 50 Average Temperature 11 | . 11 Received Heat Transfer 246 | . 246 Siege Activations . | . . Robots Corrupted . | . . Combat Hostiles . | . . Parts Fried . | . . Impact Corruptions . | . . Robots Melted . | . . Combat Hostiles . | . . Parts Melted . | . . Heat Transferred 1120 | . 1120 Parts Sabotaged . | . . Parts Stolen . | . . Parts Stripped . | . . Power Chain Reactions . | . . Alert | -11 -10 ------- Run | Yrd Mat Peak Influence 252 | . 252 Initial . | . . Average 114 | . 120 Maximum Alert Level 1 | . 1 Low Security (%) 83 | 100 82 Level 1 16 | . 17 Level 2 . | . . Level 3 . | . . Level 4 . | . . Level 5 . | . . High Security . | . . Max Security . | . . Squads Dispatched 1 | . 1 Investigation . | . . Extermination . | . . Reinforcement 1 | . 1 Assault . | . . Garrison . | . . Intercept . | . . Searches Triggered . | . . Construction Impeded . | . . Haulers Reinforced . | . . Active Scanning Responses . | . . Cargo Convoy Interrupts . | . . Stealth | -11 -10 --------- Run | Yrd Mat Distress Signals 2 | . 2 Communications Jammed . | . . Distress Signals . | . . Times Spotted 30 | . 30 Peak Tracking Total 5 | . 5 Tactical Retreats 2 | . 2 Traps | -11 -10 ------- Run | Yrd Mat Traps Triggered . | . . Indirectly . | . . Trap Hack Attempts . | . . Triggered . | . . Disarmed 4 | . 4 Reprogrammed . | . . Reused . | . . Traps Extracted . | . . Installed . | . . Triggered . | . . Machines | -11 -10 ---------- Run | Yrd Mat Machines Disabled . | . . Max in Single Turn . | . . Machines Repaired . | . . Machines Dismantled . | . . Machines Sabotaged . | . . Overloaded Fab Kills . | . . Hacking | -11 -10 --------- Run | Yrd Mat Machines Accessed 5 | . 5 Terminals 4 | . 4 Fabricators . | . . Repair Stations 1 | . 1 Recycling Units . | . . Scanalyzers . | . . Garrison Access . | . . Total Hacks 16 | . 16 Successful 9 | . 9 Failed 7 | . 7 Catastrophic . | . . Database Lockouts . | . . Manual . | . . Terminals 13 | . 13 Fabricators . | . . Repair Stations 3 | . 3 Recycling Units . | . . Scanalyzers . | . . Garrison Access . | . . Terminal Hacks 6 | . 6 Emergency Access Points 1 | . 1 Locate Traps 1 | . 1 Disarm Traps 1 | . 1 Investigation Status 1 | . 1 Hauler Manifests 1 | . 1 Registered Components 1 | . 1 Fabricator Hacks . | . . Repair Station Hacks 3 | . 3 Scan Component 1 | . 1 Repair 1 | . 1 Refit 1 | . 1 Recycling Unit Hacks . | . . Scanalyzer . | . . Garrison Access Hacks . | . . Unauthorized Hacks . | . . Terminals . | . . Fabricators . | . . Repair Stations . | . . Recycling Units . | . . Scanalyzers . | . . Garrison Access . | . . Data Cores Recovered . | . . Used . | . . Hacking Detections 3 | . 3 Full Trace Events . | . . Feedback Events . | . . Feedback Blocked . | . . Robot Schematics Acquired . | . . Robots Built . | . . Authchips . | . . Time . | . . Total Robot Build Rating . | . . Part Schematics Acquired . | . . Parts Built . | . . Authchips . | . . Time . | . . Total Part Build Rating . | . . Parts Repaired 1 | . 1 Time 26 | . 26 Parts Recycled . | . . Recycled Matter . | . . Retrieved Matter . | . . Retrieved Components . | . . Parts Scanalyzed . | . . Part Schematics Acquired . | . . Parts Damaged . | . . Bothacking | -11 -10 ------------ Run | Yrd Mat Used RIF Installer . | . . Robots Hacked . | . . Non-combat . | . . Combat . | . . Robot Hacks Applied . | . . Relay Couplers Released . | . . Fabnet Peak Effective % . | . . Robots Rewired . | . . Allies Hacked . | . . Hacks Repelled . | . . Allies | -11 -10 -------- Run | Yrd Mat Total Allies . | . . Largest Group . | . . Highest-Rated Group . | . . Highest-Rated Ally . | . . Total Orders . | . . Ally Attacks . | . . Total Damage . | . . Kills . | . . Allies Corrupted . | . . Allies Melted . | . . Intel | -11 -10 ------- Run | Yrd Mat Robot Analysis Total . | . . Derelict Logs Recovered . | . . Drone Launches . | . . Drone Recoveries . | . . Exploration | -11 -10 ------------- Run | Yrd Mat Turns Passed 995 | 54 941 Spaces Moved 414 | 50 364 Core 51 | 23 28 Treads . | . . Legs 162 | 27 135 Wheels . | . . Hover . | . . Flight 201 | . 201 Fastest Speed 50 | 50 117 Average Speed 170 | 87 181 Slowest Speed 360 | 120 360 Overloaded Moves . | . . Propulsion Burnouts . | . . Robots Hopped . | . . Cave-ins Triggered . | . . Exploration Rate (%) 27 | 3 52 Regions Visited 1 Branch Regions . Pre-discovered Areas . | . . Known Exits Taken . | . . Unknown Exits Taken 1 | 1 . Scrap Searched . | . . Spaces Dug . | . . Terrain Destroyed . | . . Melee . | . . Projectile . | . . AOE . | . . Terrain Rammed . | . . Walls Destroyed . | . . Machines Disabled . | . . Actions | -11 -10 --------- Run | Yrd Mat Total 578 | 59 519 Wait 55 | . 55 Move 413 | 49 364 Hop . | . . Pick Up 17 | 6 11 Fast Attach 1 | 1 . Attach 9 | 3 6 Detach . | . . Swap 1 | . 1 Drop 5 | . 5 Fire 77 | . 77 Melee . | . . Ram . | . . Kick . | . . Crush . | . . Escape Stasis . | . . Rewire . | . . Trap . | . . Miscellaneous . | . . Route ------- -11/Scrapyard -10/Materials (discovered 2 exits: [*Mat] / [*Min]) History --------- Turn | Location | Event 2 | -11/Scrapyard | Met Revision 17 4 | -11/Scrapyard | Discovered new exit (range 16) 55 | -11/Scrapyard | Entered Materials 300 | -10/Materials | Build established: Mutant 467 | -10/Materials | Discovered new exit (range 9) 488 | -10/Materials | Core integrity fell below 50% 609 | -10/Materials | Discovered new exit (range 14) 776 | -10/Materials | Repaired Heat Sink 989 | -10/Materials | Core integrity fell below 20% 996 | -10/Materials | Destroyed by G-34 Mercenary with Small Laser Last Messages --------------- Repairing Heat Sink... ETC: 26 00755_ K-01 Serf cleans the Repair Station. 00762_ K-01 Serf cleans the Processing Tank. 00776_ Repair station completes Heat Sink repairs. 00776_ Acquired Heat Sink. 00781_ K-01 Serf cleans the Processing Tank. 00810_ Flight Unit destroyed. 00812_ G-34 Mercenary destroyed. 00812_ Switching to secondary target: G-47 Trooper. 00812_ G-47 Trooper suffers critical hit (Destroy). 00812_ Destroyed Aluminum Leg. 00826_ G-47 Trooper destroyed. 00829_ Acquired 12 matter. 00986_ Ion Engine destroyed. Map ----- +----------------------------------------------------+ | ?????????????????????????###########?????????????? | | ?????????????????????????# ############### | | ?????????????????????????#"" ## ^ ^ # | | ?????????????????????????#"" ## ^ # | | ??????????#########??????#"T #" """^ + | | ??????????# #??????#"" #T """"" # | | ??????????# < ########"" !! #" """"" # | | ??????????# + ! ## """"" # | | ?????????#######+######### ## """ # | | ?????????# #######+###### | | ?????????# """ """ """ # | | ?????????# """ """ """ +a ## ##### | | ?????????# """ """ """ # ## #?####+### | | ?????????# # ### ###! !#?# """ | | ?????????# [ # g #?# #?##!!!!##?# "R" | | ?????????############### #?# #??######??# " " | | ???????????????????????# g###+#######????# * | | ???????????????????????# # #????# | | ???????????????######### # T #????# """"" | | ??????????????# # # #????# """"" | | ??????????????# """ # # #????# """"" | | ??????????????# """ # + """ """ #????# | | ??????????????# """ + # """ """ #????######## | | ??????????????# # # """ """ +???????????? | | ??????????????# """ # # #???????????? | | ???????+??????# """ # @ ###########???????????? | | ??????????????# """ # #?????????????????????? | | ??????????????# # +?????????????????????? | | ??????????????########## #?????????????????????? | | ????????#????????####### #?????????????????????? | | ??????? ????????# """ # #?????????????????????? | | ??????? #???????# "T" + #?????????????????????? | | ???????? ???????# # +?????????????????????? | | ???#?# ???????# """ # #?########????????????? | | ???# # ##?????# """ # %## ##+###???????? | | ???# ? ?????# """ # = ??????? | | ???# ??? ?????# !%=+ % [ < ??????? | | ???# ##### ####### """ # %[ ??????? | | ???# + """ # ## ##+###???????? | | ???+ # """ # #? "!"!" #????????????? | | ???# """ # # #??"!"!""#????*???????? | | ?????# "T" # !# #??#######????????????? | | ?????# =% #######% ##????????????????????? | | ?????# % #####! #????????????????????? | | ?????# ![ !% %% #########????????????? | | ###### =%% !!%*= #????????????? | | %[ = ## #????????????? | | ##+###### ### ##### ## #????????????? | | # ####+##########??###+#### #???????????? | | + ## ! #????? ?# +???????????? | +----------------------------------------------------+ Best States ------------- Heat Dissipation 35 Energy Generation 10 Energy Capacity 250 Matter Stores 300 Matter Capacity 300 Sight Range 16 Terrain Scan Density 10 Evasion (%) 55 Item Schematics ----------------- None Robot Schematics ------------------ None Fabricated ------------ Nothing Alien Tech Used ----------------- None Achievements -------------- None Challenges ------------ None Game ------ Seed DispersionInsulatedField Manual? 0 Play Time 00:10:37 Cumulative 15.2 hours Start 2024.06.03 @ 20:50:13 End 2024.06.03 @ 21:05:13 Sessions 1 Manual Loads 0 Difficulty Rogue Special Mode None Game No. 23 Rogue 23 Adventurer 0 Explorer 0 Win Type - Total 0 Types 0/0/0/0/0/0/0/0/0 Lore% 13 Gallery% 23 Achievement% 17 Wizard Run 0 Options --------- Layout 2 ASCII 0 Keyboard 0 Movement Mouse Keybinds 0 Fullscreen 1 Font 48/Smallcaps Map View 50x44 Zoom Use 0% Tactical HUD 1 Map Filters NONE Filters NONE Steam 1 RUN: 8fef96bd-ee74-402e-85b4-d516c03c8105